bitfinex/quotes_BTCUSD_20250617
["timestamp","ask_amount","ask_price","bid_price","bid_amount"]
[1750134991653,1.05779495,107490.0,107480.0,0.10649641]
[1750134991971,0.34469253,107490.0,107480.0,0.55522548]
[1750134992175,0.49877253,107490.0,107480.0,0.55522548]
[1750134992543,0.30405253,107490.0,107480.0,0.55522548]
[1750134992713,0.49877253,107490.0,107480.0,0.55522548]
[1750134992915,0.34469253,107490.0,107480.0,0.34930863]
[1750134993066,0.30405253,107490.0,107480.0,0.34930863]
[1750134993268,0.49877253,107490.0,107480.0,0.34930863]
[1750134993471,0.30405253,107490.0,107480.0,0.34930863]
[1750134993724,0.49877253,107490.0,107480.0,0.34930863]
[1750135000936,0.34469253,107490.0,107480.0,0.34930863]
[1750135001140,0.49873253,107490.0,107480.0,0.34930863]
[1750135004662,0.49869253,107490.0,107480.0,0.34930863]
[1750135009228,0.49869253,107490.0,107480.0,0.14356656]
[1750135009432,0.49869253,107490.0,107480.0,0.31223848]
[1750135013060,0.49869253,107490.0,107480.0,0.51800769]
[1750135013233,0.30405253,107490.0,107480.0,0.51800769]
[1750135013459,0.49857253,107490.0,107480.0,0.51800769]
[1750135016240,0.34461253,107490.0,107480.0,0.51800769]
[1750135016479,0.49857253,107490.0,107480.0,0.51800769]
[1750135017289,0.49857253,107490.0,107480.0,0.10649641]
[1750135017437,0.49857253,107490.0,107480.0,0.51800769]
[1750135018262,0.24837077,107490.0,107480.0,0.91914843]
[1750135018468,0.24837077,107490.0,107480.0,0.92845214]
[1750135018469,0.20781077,107490.0,107480.0,0.92845214]
[1750135018665,0.20781077,107490.0,107480.0,0.72269667]
[1750135018867,0.20781077,107490.0,107480.0,0.51687378]
[1750135019339,0.20781077,107490.0,107480.0,0.51487378]
[1750135019340,0.19550802,107490.0,107480.0,0.51487378]
[1750135019966,0.18620501,107490.0,107480.0,0.3101848]
[1750135020173,0.18720501,107490.0,107480.0,0.3111848]
[1750135020788,0.18920501,107490.0,107480.0,0.3151848]
[1750135025907,0.18850501,107490.0,107480.0,0.3151848]
[1750135027117,0.18850501,107490.0,107480.0,0.4131948]
[1750135027321,0.18850501,107490.0,107480.0,0.3151848]
[1750135027901,0.18850501,107490.0,107480.0,0.10949641]
[1750135028127,0.18850501,107490.0,107480.0,0.13869421]
[1750135028334,0.28474677,107490.0,107480.0,0.15459421]
[1750135028539,0.28474677,107490.0,107480.0,0.3443826]
[1750135028750,0.28474677,107490.0,107480.0,0.13869421]
[1750135028967,0.28474677,107490.0,107480.0,0.07739641]
[1750135029173,0.28474677,107490.0,107480.0,0.2830848]
[1750135031078,0.28474677,107490.0,107480.0,0.2982848]
[1750135031301,0.28474677,107490.0,107480.0,0.09259641]
[1750135031536,0.28474677,107490.0,107480.0,0.2982848]
[1750135031743,0.28474677,107490.0,107480.0,0.07739641]
[1750135031973,0.28474677,107490.0,107480.0,0.2830848]
[1750135033328,0.28474677,107490.0,107480.0,0.07739641]
[1750135033541,0.28474677,107490.0,107480.0,0.2830848]
[1750135036989,0.28474677,107490.0,107480.0,0.3143848]
[1750135037224,0.28474677,107490.0,107480.0,0.35166084]
[1750135039208,0.47914677,107490.0,107480.0,0.35166084]
[1750135039443,0.28474677,107490.0,107480.0,0.35166084]
[1750135039696,0.47914677,107490.0,107480.0,0.35166084]
[1750135040832,0.28474677,107490.0,107480.0,0.37998004]
[1750135041054,0.47914677,107490.0,107480.0,0.58580953]
[1750135041277,0.28474677,107490.0,107480.0,0.58580953]
[1750135041505,0.47914677,107490.0,107480.0,0.58580953]
[1750135041731,0.47914677,107490.0,107480.0,0.57030953]
[1750135042651,0.47914677,107490.0,107480.0,0.55450953]
[1750135043098,0.47914677,107490.0,107480.0,0.34875059]
[1750135044243,0.51164677,107490.0,107480.0,0.34875059]
[1750135044471,0.47914677,107490.0,107480.0,0.34875059]
[1750135045635,0.47914677,107490.0,107480.0,0.55450953]
[1750135045887,0.47914677,107490.0,107480.0,0.56950953]
[1750135046139,0.47906677,107490.0,107480.0,0.36375059]
[1750135046331,0.47906677,107490.0,107480.0,0.56950953]
[1750135047758,0.47906677,107490.0,107480.0,0.55450953]
[1750135047956,0.49516677,107490.0,107480.0,0.55450953]
[1750135048163,0.47906677,107490.0,107480.0,0.55450953]
[1750135048534,0.47906677,107490.0,107480.0,0.14299165]
[1750135048742,0.47906677,107490.0,107480.0,0.55450953]
[1750135049564,0.47906677,107490.0,107480.0,0.14299165]
[1750135049786,0.47906677,107490.0,107480.0,0.34875059]
[1750135051489,0.47906677,107490.0,107480.0,0.55450953]
[1750135051868,0.51056677,107490.0,107480.0,0.34875059]
[1750135052071,0.51056677,107490.0,107480.0,0.14299165]
[1750135052279,0.51056677,107490.0,107480.0,0.34875059]
[1750135052476,0.51056677,107490.0,107480.0,0.10571561]
[1750135052686,0.51056677,107490.0,107480.0,0.31147455]
[1750135053910,0.47906677,107490.0,107480.0,0.31147455]
[1750135055978,0.51096677,107490.0,107480.0,0.31147455]
[1750135056518,0.47906677,107490.0,107480.0,0.31147455]
[1750135056872,0.47906677,107490.0,107480.0,0.35165956]
[1750135060429,0.47906677,107490.0,107480.0,0.14590062]
[1750135060636,0.47906677,107490.0,107480.0,0.31147455]
[1750135067072,0.47906677,107490.0,107480.0,0.32707455]
[1750135068007,0.47906677,107490.0,107480.0,0.31147455]
[1750135075923,0.47906677,107490.0,107480.0,0.51723349]
[1750135076189,0.28474677,107490.0,107480.0,0.53353349]
[1750135076403,0.47894677,107490.0,107480.0,0.53353349]
[1750135076626,0.28474677,107490.0,107480.0,0.53353349]
[1750135076848,0.38270501,107490.0,107480.0,0.54973349]
[1750135078542,0.18850501,107490.0,107480.0,0.54973349]
[1750135078777,0.34226501,107490.0,107480.0,0.54973349]
[1750135081966,0.34226501,107490.0,107480.0,0.64774349]
[1750135082181,0.34226501,107490.0,107480.0,0.54973349]
[1750135091961,0.38266501,107490.0,107480.0,0.54973349]
[1750135092161,0.38266501,107490.0,107480.0,0.13821561]
[1750135092379,0.38266501,107490.0,107480.0,0.54973349]
[1750135094963,0.38262501,107490.0,107480.0,0.54973349]
[1750135101497,0.38262501,107490.0,107480.0,0.31147455]
[1750135101945,0.51106677,107490.0,107480.0,0.31147455]
[1750135102558,0.71682571,107490.0,107480.0,0.07739641]
[1750135103679,0.71482571,107490.0,107480.0,0.07339641]
[1750135103878,0.71382571,107490.0,107480.0,0.07239641]
[1750135104102,0.71482571,107490.0,107480.0,0.07339641]
[1750135104522,0.71582571,107490.0,107480.0,0.07739641]
[1750135105530,0.74098342,107490.0,107480.0,0.07739641]
[1750135108098,0.71582571,107490.0,107480.0,0.07739641]
[1750135108726,1.05582571,107490.0,107480.0,0.07739641]
[1750135110654,1.05570571,107490.0,107480.0,0.07739641]
[1750135110874,0.65594677,107490.0,107480.0,0.07739641]
[1750135111094,0.84994677,107490.0,107480.0,0.07739641]
[1750135111309,0.89501526,107490.0,107480.0,0.07739641]
[1750135111513,1.1007742,107490.0,107480.0,0.07739641]
[1750135111735,1.05570571,107490.0,107480.0,0.07739641]
[1750135113579,1.26146465,107490.0,107480.0,0.07739641]
[1750135113926,1.28941865,107490.0,107480.0,0.07739641]
[1750135114130,1.08365971,107490.0,107480.0,0.07739641]
[1750135114353,1.37962457,107490.0,107480.0,0.07739641]
[1750135114574,6.45081201,107490.0,107480.0,0.07639641]
[1750135114984,6.45281201,107490.0,107480.0,0.07639641]
[1750135115620,6.45181201,107490.0,107480.0,0.07239641]
[1750135115774,6.45381201,107490.0,107480.0,0.07339641]
[1750135116909,6.45414123,107490.0,107480.0,0.07339641]
[1750135122418,6.45478123,107490.0,107480.0,0.07339641]
[1750135126780,6.04293413,107490.0,107480.0,0.07339641]
[1750135126983,6.45478123,107490.0,107480.0,0.07339641]
[1750135127232,6.04293413,107490.0,107480.0,0.07339641]
[1750135127592,6.45478123,107490.0,107480.0,0.07339641]
[1750135129872,6.48537307,107490.0,107480.0,0.07339641]
[1750135130028,6.45478123,107490.0,107480.0,0.07339641]
[1750135130434,6.48255263,107490.0,107480.0,0.07339641]
[1750135131038,6.67919263,107490.0,107480.0,0.07339641]
[1750135131617,5.61628501,107480.0,107470.0,0.05837559]
[1750135131819,6.09515022,107480.0,107470.0,0.05837559]
[1750135132029,6.25987838,107480.0,107470.0,0.05837559]
[1750135132439,5.85863483,107480.0,107470.0,0.05837559]
[1750135132644,5.92427861,107480.0,107470.0,0.05837559]
[1750135132852,5.92427861,107480.0,107470.0,0.07497559]
[1750135132853,1.27985676,107480.0,107470.0,0.07497559]
[1750135133075,1.08493321,107480.0,107470.0,0.05937559]
[1750135133280,1.29085676,107480.0,107470.0,0.05937559]
[1750135133653,1.27985676,107480.0,107470.0,0.05837559]
[1750135133857,1.17072243,107480.0,107470.0,0.05837559]
[1750135134061,1.37964598,107480.0,107470.0,0.05837559]
[1750135134701,1.18348598,107480.0,107470.0,0.05837559]
[1750135134916,1.37996598,107480.0,107470.0,0.05837559]
[1750135135375,1.38396598,107480.0,107470.0,0.05837559]
[1750135136205,1.41526598,107480.0,107470.0,0.05837559]
[1750135137493,1.23332683,107480.0,107470.0,0.05837559]
[1750135137687,1.43128683,107480.0,107470.0,0.05837559]
[1750135137990,1.43144683,107480.0,107470.0,0.05837559]
[1750135139597,1.23332683,107480.0,107470.0,0.05837559]
[1750135139782,1.43148683,107480.0,107470.0,0.05837559]
[1750135141860,1.26109823,107480.0,107470.0,0.05837559]
[1750135142067,1.45917823,107480.0,107470.0,0.05837559]
[1750135142274,1.25325468,107480.0,107470.0,0.05837559]
[1750135142484,1.45917823,107480.0,107470.0,0.05837559]
[1750135144012,1.25325468,107480.0,107470.0,0.05837559]
[1750135144439,1.45917823,107480.0,107470.0,0.05837559]
[1750135146691,1.30293823,107480.0,107470.0,0.05837559]
[1750135146893,1.45925823,107480.0,107470.0,0.05837559]
[1750135149222,1.05517468,107480.0,107470.0,0.05837559]
[1750135149551,1.05517468,107480.0,107470.0,0.09057559]
[1750135149552,0.85881421,107480.0,107470.0,0.09057559]
[1750135149791,0.66081421,107480.0,107470.0,0.09057559]
[1750135150021,0.34046677,107480.0,107470.0,0.29649914]
[1750135150228,0.83662677,107480.0,107470.0,0.29649914]
[1750135150405,0.83662677,107480.0,107470.0,0.09057559]
[1750135150720,0.63862677,107480.0,107470.0,0.09057559]
[1750135150919,0.83666677,107480.0,107470.0,0.09057559]
[1750135151065,0.83366677,107480.0,107470.0,0.09057559]
[1750135151520,0.83466677,107480.0,107470.0,0.09157559]
[1750135151725,0.83066677,107480.0,107470.0,0.09157559]
[1750135151914,0.83262677,107480.0,107470.0,0.09157559]
[1750135152502,0.83258677,107480.0,107470.0,0.09157559]
[1750135152691,0.83258677,107480.0,107470.0,0.12723302]
[1750135153437,0.83258677,107480.0,107470.0,0.09157559]
[1750135158286,0.21405225,107450.0,107440.0,0.19545317]
[1750135158566,0.70993225,107450.0,107440.0,0.41068398]
[1750135158689,0.70993225,107450.0,107440.0,0.41999115]
[1750135158895,0.52379917,107450.0,107440.0,0.42929823]
[1750135159165,0.52379917,107450.0,107440.0,0.41068398]
[1750135159347,0.52379917,107450.0,107440.0,0.41268398]
[1750135159682,0.18484621,107450.0,107440.0,0.41268398]
[1750135159955,0.18484621,107450.0,107440.0,0.42199115]
[1750135160182,0.37097929,107450.0,107440.0,0.41268398]
[1750135160411,0.37097929,107450.0,107440.0,0.41268406]
[1750135160754,0.36167316,107450.0,107440.0,0.41268406]
[1750135161291,0.36367316,107450.0,107440.0,0.44738406]
[1750135161731,0.36367316,107450.0,107440.0,0.4839917]
[1750135162157,0.36367316,107450.0,107440.0,0.47468444]
[1750135162778,0.36367316,107450.0,107440.0,0.4839917]
[1750135163011,0.02165922,107450.0,107440.0,0.50260578]
[1750135163215,0.04027174,107450.0,107440.0,0.50260595]
[1750135163421,0.04027148,107450.0,107440.0,0.50260552]
[1750135163626,0.04957796,107450.0,107440.0,0.50260509]
[1750135163834,0.04957874,107450.0,107440.0,0.48399118]
[1750135164108,0.03096561,107450.0,107440.0,0.50260509]
[1750135164337,0.04027209,107450.0,107440.0,0.50260509]
[1750135164538,0.02165913,107450.0,107440.0,0.50260509]
[1750135164744,0.04957839,107450.0,107440.0,0.50260509]
[1750135165161,0.04957908,107450.0,107440.0,0.49329818]
[1750135165774,0.04027243,107450.0,107440.0,0.49329818]
[1750135165956,0.03096587,107450.0,107440.0,0.50260509]
[1750135166281,0.03096587,107450.0,107440.0,0.29668154]
[1750135166518,0.04027243,107450.0,107440.0,0.50260509]
[1750135166723,0.04957908,107450.0,107440.0,0.49329818]
[1750135168257,0.04957908,107450.0,107440.0,0.50260509]
[1750135168467,0.04957908,107450.0,107440.0,0.49329818]
[1750135169510,0.04027243,107450.0,107440.0,0.50260509]
[1750135169734,0.02165939,107450.0,107440.0,0.59884685]
[1750135169953,0.02165904,107450.0,107440.0,0.59884685]
[1750135170812,0.03096526,107450.0,107440.0,0.59884685]
[1750135171020,0.00304704,107450.0,107440.0,0.59884685]
[1750135171267,0.01235308,107450.0,107440.0,0.8047704]
[1750135171482,0.03096586,107450.0,107440.0,0.59884685]
[1750135171686,0.02165938,107450.0,107440.0,0.59884685]
[1750135172828,0.0216593,107450.0,107440.0,0.59884685]
[1750135173872,0.03096569,107450.0,107440.0,0.59884685]
[1750135174094,0.0216593,107450.0,107440.0,0.59884685]
[1750135174302,0.03096569,107450.0,107440.0,0.59884685]
[1750135174846,0.0216593,107450.0,107440.0,0.59884685]
[1750135175264,0.01235308,107450.0,107440.0,0.59884685]
[1750135175471,0.02165938,107450.0,107440.0,0.59884685]
[1750135175668,0.0216593,107450.0,107440.0,0.59884685]
[1750135176868,0.01235308,107450.0,107440.0,0.59884685]
[1750135177279,0.012353,107450.0,107440.0,0.59884685]
[1750135177486,0.00304704,107450.0,107440.0,0.7114277]
[1750135177696,0.19222183,107460.0,107450.0,0.24615198]
[1750135177697,0.03722183,107460.0,107450.0,0.24615198]
[1750135177910,0.22333759,107460.0,107450.0,0.44324085]
[1750135178095,0.22333759,107460.0,107450.0,0.45254707]
[1750135179310,0.03922183,107460.0,107450.0,0.47315924]
[1750135180605,0.04022183,107460.0,107450.0,0.47415924]
[1750135181006,0.03091605,107460.0,107450.0,0.47415924]
[1750135182461,0.04022175,107460.0,107450.0,0.47415924]
[1750135183100,0.2263382,107460.0,107450.0,0.4648532]
[1750135185360,0.21703285,107460.0,107450.0,0.44624085]
[1750135186318,0.21703285,107460.0,107450.0,0.231011]
[1750135186542,0.20772724,107460.0,107450.0,0.43693455]
[1750135186751,0.20772724,107460.0,107450.0,0.44624103]
[1750135188185,0.19842154,107460.0,107450.0,0.44624103]
[1750135188839,0.19842154,107460.0,107450.0,0.43693464]
[1750135189163,0.19842154,107460.0,107450.0,0.25080156]
[1750135189407,0.19842154,107460.0,107450.0,0.26010804]
[1750135189641,0.19842154,107460.0,107450.0,0.26010812]
[1750135189882,0.19842154,107460.0,107450.0,0.04487801]
[1750135190116,0.18911576,107460.0,107450.0,0.24149491]
[1750135190779,0.18911576,107460.0,107450.0,0.20696368]
[1750135193051,0.18911576,107460.0,107450.0,0.2068736]
[1750135193592,0.18911576,107460.0,107450.0,0.2375736]
[1750135194348,0.18911576,107460.0,107450.0,0.03174013]
[1750135194570,0.18911576,107460.0,107450.0,0.2375736]
[1750135198691,0.18911576,107460.0,107450.0,0.2221736]
[1750135200162,0.18911576,107460.0,107450.0,0.2068736]
[1750135200413,0.21921576,107460.0,107450.0,0.00104013]
[1750135200628,0.21921576,107460.0,107450.0,0.2068736]
[1750135200842,0.42504923,107460.0,107450.0,0.00104013]
[1750135201067,0.6308827,107460.0,107450.0,0.00104013]
[1750135201285,0.36545752,107460.0,107450.0,0.00104013]
[1750135201507,0.77712446,107460.0,107450.0,0.00104013]
[1750135201734,0.80562559,107460.0,107450.0,0.00104013]
[1750135203102,0.85562559,107460.0,107450.0,0.00104013]
[1750135204653,0.44395865,107460.0,107450.0,0.00104013]
[1750135204864,0.85562559,107460.0,107450.0,0.00104013]
[1750135205080,0.64988197,107460.0,107450.0,0.00104013]
[1750135206398,0.64888197,107460.0,107450.0,4.013e-05]
[1750135206623,0.21409158,107430.0,107420.0,0.90949792]
[1750135206865,0.20478389,107430.0,107420.0,0.93208893]
[1750135207085,0.20478389,107430.0,107420.0,0.72616561]
[1750135207299,0.19547594,107430.0,107420.0,0.92277985]
[1750135207905,0.19647594,107430.0,107420.0,0.92477985]
[1750135208150,0.19847594,107430.0,107420.0,0.92677985]
[1750135208992,0.19847594,107430.0,107420.0,0.93608893]
[1750135209209,0.19847594,107430.0,107420.0,0.94539783]
[1750135209442,0.19847594,107430.0,107420.0,0.93608893]
[1750135209728,0.19847594,107430.0,107420.0,0.94539792]
[1750135209885,0.19847594,107430.0,107420.0,0.93608893]
[1750135210093,0.19847594,107430.0,107420.0,0.94539792]
[1750135210292,0.19847594,107430.0,107420.0,0.7239746]
[1750135210524,0.19847594,107430.0,107420.0,0.90418893]
[1750135210755,0.19847594,107430.0,107420.0,0.70757451]
[1750135210942,0.19847594,107430.0,107420.0,0.91349783]
[1750135212407,0.19847594,107430.0,107420.0,0.92280665]
[1750135212809,0.19847594,107430.0,107420.0,0.71688333]
[1750135213021,0.19847594,107430.0,107420.0,0.92280665]
[1750135214168,0.19847594,107430.0,107420.0,0.71688333]
[1750135214596,0.19847594,107430.0,107420.0,0.92280665]
[1750135215019,0.19847594,107430.0,107420.0,0.93211538]
[1750135215020,0.01230821,107430.0,107420.0,0.93211538]
[1750135215231,0.21709219,107430.0,107420.0,0.92280665]
[1750135216224,0.21709219,107430.0,107420.0,0.70757451]
[1750135216432,0.21709219,107430.0,107420.0,0.91349792]
[1750135217189,0.21709219,107430.0,107420.0,0.92280682]
[1750135217601,0.21709219,107430.0,107420.0,0.77604628]
[1750135217812,0.24829219,107430.0,107420.0,0.91349792]
[1750135218634,0.0342,107430.0,107420.0,0.72619214]
[1750135218876,0.003,107430.0,107420.0,1.02835722]
[1750135219090,0.02161564,107430.0,107420.0,1.05965722]
[1750135219299,0.03092385,107430.0,107420.0,1.04355731]
[1750135219526,0.02161564,107430.0,107420.0,1.04355679]
[1750135219740,0.02161564,107430.0,107420.0,1.04315679]
[1750135220597,0.03092385,107430.0,107420.0,0.82203347]
[1750135220846,0.04023215,107430.0,107420.0,1.02795679]
[1750135221265,0.04023215,107430.0,107420.0,0.82203347]
[1750135221470,0.04023215,107430.0,107420.0,1.02795679]
[1750135221772,0.03092385,107430.0,107420.0,1.02795679]
[1750135221977,0.03092376,107430.0,107420.0,1.02795679]
[1750135223096,0.04023206,107430.0,107420.0,1.02795679]
[1750135223539,0.04954044,107430.0,107420.0,1.02795679]
[1750135223742,0.23570817,107430.0,107420.0,1.17304815]
[1750135224247,0.23570817,107430.0,107420.0,0.96712483]
[1750135224474,0.22640048,107430.0,107420.0,1.17304815]
[1750135225273,0.03092437,107430.0,107420.0,1.18235679]
[1750135225471,0.02161607,107430.0,107420.0,1.18235679]
[1750135225918,0.03092428,107430.0,107420.0,1.18235679]
[1750135226526,0.02161607,107430.0,107420.0,1.18235679]
[1750135226934,0.03092428,107430.0,107420.0,1.38827777]
[1750135227630,0.03092428,107430.0,107420.0,0.97643347]
[1750135227906,0.02161607,107430.0,107420.0,1.38827777]
[1750135228559,0.03092428,107430.0,107420.0,0.97643347]
[1750135228768,0.04023258,107430.0,107420.0,0.97643347]
[1750135228979,0.04023258,107430.0,107420.0,1.38827777]
[1750135229590,0.04023258,107430.0,107420.0,1.18235562]
[1750135229814,0.04954096,107430.0,107420.0,1.38827777]
[1750135230359,0.04023258,107430.0,107420.0,1.38827777]
[1750135230563,0.03092428,107430.0,107420.0,1.38827777]
[1750135232081,0.03092376,107430.0,107420.0,1.38827777]
[1750135232299,0.02161564,107430.0,107420.0,1.38827777]
[1750135232729,0.03092351,107430.0,107420.0,1.38827777]
[1750135233182,0.04023172,107430.0,107420.0,1.38827777]
[1750135233395,0.03092351,107430.0,107420.0,1.38827777]
[1750135233618,0.04023172,107430.0,107420.0,1.38827777]
[1750135233835,0.03092351,107430.0,107420.0,1.38827777]
[1750135234526,0.04023163,107430.0,107420.0,1.38827777]
[1750135235195,0.07153215,107430.0,107420.0,1.37900913]
[1750135236258,0.08084045,107430.0,107420.0,1.37900913]
[1750135236394,0.26700818,107430.0,107420.0,1.12832737]
[1750135236603,0.26700878,107430.0,107420.0,1.28276737]
[1750135237152,0.26700878,107430.0,107420.0,1.28272737]
[1750135237794,0.07153267,107430.0,107420.0,1.29203601]
[1750135238003,0.06222437,107430.0,107420.0,1.29203601]
[1750135238403,0.06222437,107430.0,107420.0,0.88019171]
[1750135238622,0.06222437,107430.0,107420.0,1.29203601]
[1750135239371,0.07153267,107430.0,107420.0,1.29203601]
[1750135241675,0.08084105,107430.0,107420.0,1.29203601]
[1750135245073,0.08084105,107430.0,107420.0,1.28272737]
[1750135245586,0.08084105,107430.0,107420.0,1.12832737]
[1750135245815,0.08084105,107430.0,107420.0,1.28248737]
[1750135246037,0.25770074,107430.0,107420.0,1.33234142]
[1750135246258,0.23908441,107430.0,107420.0,0.15306376]
[1750135246485,0.22977611,107430.0,107420.0,0.51306591]
[1750135247119,0.22977611,107430.0,107420.0,0.35898591]
[1750135247337,0.22977611,107430.0,107420.0,0.51306591]
[1750135247544,0.22977611,107430.0,107420.0,0.35898591]
[1750135249660,0.22977611,107430.0,107420.0,0.15306376]
[1750135250765,0.22977611,107430.0,107420.0,0.35898591]
[1750135251238,0.43569826,107430.0,107420.0,0.15306376]
[1750135251479,0.22977611,107430.0,107420.0,0.15306376]
[1750135252454,0.50992698,107430.0,107420.0,0.15306376]
[1750135252700,0.86209089,107430.0,107420.0,0.14440507]
[1750135252913,0.65616874,107430.0,107420.0,0.004]
[1750135253557,0.65616874,107430.0,107420.0,0.002]
[1750135253800,0.91109089,107430.0,107420.0,0.002]
[1750135254012,0.91209089,107430.0,107420.0,0.003]
[1750135254512,1.00624011,107430.0,107420.0,0.001]
[1750135254743,1.00824011,107430.0,107420.0,0.003]
[1750135254975,1.00857175,107430.0,107420.0,0.003]
[1750135255403,1.5597926,107430.0,107420.0,0.002]
[1750135255619,0.23694109,107400.0,107390.0,0.01696448]
[1750135255838,0.63790906,107400.0,107390.0,0.01696448]
[1750135256061,0.22774875,107390.0,107380.0,0.01]
[1750135256514,0.22774875,107390.0,107380.0,0.045006]
[1750135256933,0.22822101,107390.0,107380.0,0.045006]
[1750135257379,0.43430898,107390.0,107380.0,0.045006]
[1750135257610,0.22822101,107390.0,107380.0,0.045006]
[1750135258930,0.23022101,107390.0,107380.0,0.045006]
[1750135259145,0.23122101,107390.0,107380.0,0.0640428]
[1750135259375,0.42594101,107390.0,107380.0,0.07568343]
[1750135260040,0.2405326,107390.0,107380.0,0.26193785]
[1750135260277,0.4352526,107390.0,107380.0,0.26892248]
[1750135260497,0.4352526,107390.0,107380.0,0.27823494]
[1750135260708,0.4352526,107390.0,107380.0,0.0640428]
[1750135260919,0.4352526,107390.0,107380.0,0.06637067]
[1750135261346,0.42594101,107390.0,107380.0,0.06637067]
[1750135261575,0.42594101,107390.0,107380.0,0.0640428]
[1750135265185,0.42594101,107390.0,107380.0,0.0290368]
[1750135265411,0.47594101,107390.0,107380.0,0.0290368]
[1750135269291,0.28122101,107390.0,107380.0,0.0290368]
[1750135269499,0.47602101,107390.0,107380.0,0.0290368]
[1750135270052,0.28122101,107390.0,107380.0,0.0290368]
[1750135270271,0.47602101,107390.0,107380.0,0.07397638]
[1750135270694,0.28122101,107390.0,107380.0,0.07397638]
[1750135271140,0.47602101,107390.0,107380.0,0.07397638]
[1750135273027,0.28122101,107390.0,107380.0,0.07397638]
[1750135273218,0.47602101,107390.0,107380.0,0.07397638]
[1750135275219,0.01278368,107390.0,107380.0,0.4779592]
[1750135275426,0.23551837,107390.0,107380.0,0.50104359]
[1750135275649,0.42175535,107390.0,107380.0,0.29616435]
[1750135275794,0.41244419,107390.0,107380.0,0.2986897]
[1750135275995,0.41244419,107390.0,107380.0,0.49425649]
[1750135276204,0.41244419,107390.0,107380.0,0.27885615]
[1750135276446,0.40313277,107390.0,107380.0,0.27885615]
[1750135279201,0.42432109,107390.0,107380.0,0.07397638]
[1750135281759,0.42432109,107390.0,107380.0,0.0832891]
[1750135281971,0.42432109,107390.0,107380.0,0.09260173]
[1750135282200,0.43363259,107390.0,107380.0,0.2904965]
[1750135282382,0.41843259,107390.0,107380.0,0.28816861]
[1750135283111,0.43483259,107390.0,107380.0,0.28816861]
[1750135283586,0.41843259,107390.0,107380.0,0.50356895]
[1750135283785,0.40313259,107390.0,107380.0,0.50356895]
[1750135283998,0.40313259,107390.0,107380.0,0.29748098]
[1750135284188,0.40313259,107390.0,107380.0,0.28816861]
[1750135284453,0.07204676,107390.0,107380.0,0.50356878]
[1750135284678,0.23547861,107390.0,107380.0,0.50356878]
[1750135285167,0.23547861,107390.0,107380.0,0.29748081]
[1750135285409,0.22616676,107390.0,107380.0,0.30679292]
[1750135285860,0.22616676,107390.0,107380.0,0.51288089]
[1750135286339,0.23547844,107390.0,107380.0,0.51288089]
[1750135289570,0.23547844,107390.0,107380.0,0.30679292]
[1750135289803,0.23547844,107390.0,107380.0,0.51288089]
[1750135291701,0.41240462,107390.0,107380.0,0.27885615]
[1750135291950,0.41240462,107390.0,107380.0,0.0832891]
[1750135291951,0.44390462,107390.0,107380.0,0.0832891]
[1750135292171,0.43459294,107390.0,107380.0,0.0832891]
[1750135292407,0.43459294,107390.0,107380.0,0.07397638]
[1750135293070,0.43459294,107390.0,107380.0,0.0832891]
[1750135294587,0.43459294,107390.0,107380.0,0.07397638]
[1750135294832,0.43459294,107390.0,107380.0,0.0832891]
[1750135295068,0.43455294,107390.0,107380.0,0.2602308]
[1750135295253,0.43455294,107390.0,107380.0,0.07397638]
[1750135296290,0.43455294,107390.0,107380.0,0.0832891]
[1750135296512,0.43455294,107390.0,107380.0,0.07397638]
[1750135299625,0.43451294,107390.0,107380.0,0.07397638]
[1750135302091,0.23983294,107390.0,107380.0,0.07397638]
[1750135302287,0.43451294,107390.0,107380.0,0.0832891]
[1750135302521,0.43451294,107390.0,107380.0,0.09260173]
[1750135304104,0.43451294,107390.0,107380.0,0.0832891]
[1750135304467,0.43451294,107390.0,107380.0,0.07397638]
[1750135305080,0.23983294,107390.0,107380.0,0.0832891]
[1750135305264,0.43451294,107390.0,107380.0,0.0832891]
[1750135305993,0.23983294,107390.0,107380.0,0.0832891]
[1750135306215,0.43451294,107390.0,107380.0,0.0832891]
[1750135307741,0.23983294,107390.0,107380.0,0.0832891]
[1750135307956,0.43451294,107390.0,107380.0,0.09260173]
[1750135309787,0.43451294,107390.0,107380.0,0.27885615]
[1750135313404,0.00347226,107390.0,107380.0,0.51714412]
[1750135313626,0.00347226,107390.0,107380.0,0.8757686]
[1750135313861,0.00020047,107390.0,107380.0,0.99201036]
[1750135314092,0.21325893,107410.0,107400.0,0.21415165]
[1750135314301,0.21325893,107410.0,107400.0,0.43450986]
[1750135314522,0.0406,107410.0,107400.0,0.45982015]
[1750135314741,0.40035176,107420.0,107410.0,0.19551243]
[1750135314948,0.24631176,107420.0,107410.0,0.19551243]
[1750135315163,0.24631176,107420.0,107410.0,0.20482237]
[1750135315374,0.44095176,107420.0,107410.0,0.24976195]
[1750135316208,0.24631176,107420.0,107410.0,0.25076195]
[1750135316413,0.44195176,107420.0,107410.0,0.25076195]
[1750135316619,0.24931176,107420.0,107410.0,0.25076195]
[1750135316835,0.24931176,107420.0,107410.0,0.26007181]
[1750135317078,0.02161754,107420.0,107410.0,0.47546946]
[1750135317276,0.02161754,107420.0,107410.0,0.48477897]
[1750135317277,0.04023578,107420.0,107410.0,0.48477897]
[1750135317531,0.23487578,107420.0,107410.0,0.48477897]
[1750135317737,0.24418503,107420.0,107410.0,0.47546946]
[1750135317947,0.23487639,107420.0,107410.0,0.47546946]
[1750135318160,0.04023639,107420.0,107410.0,0.47546946]
[1750135318372,0.07152714,107420.0,107410.0,0.49126946]
[1750135318576,0.04023639,107420.0,107410.0,0.50057906]
[1750135319419,0.04023639,107420.0,107410.0,0.50057854]
[1750135319862,0.03092714,107420.0,107410.0,0.50057854]
[1750135320079,0.003,107420.0,107410.0,0.50057854]
[1750135320293,0.003,107420.0,107410.0,0.6127203]
[1750135321398,0.003,107420.0,107410.0,1.12126115]
[1750135322304,0.002,107420.0,107410.0,1.12026115]
[1750135322504,0.06848124,107440.0,107430.0,0.21409185]
[1750135322717,0.02792124,107440.0,107430.0,0.43440302]
[1750135322926,0.0186139,107440.0,107430.0,0.43440302]
[1750135323147,0.0186139,107440.0,107430.0,0.45030302]
[1750135323574,0.0279209,107440.0,107430.0,0.45030302]
[1750135324005,0.0279209,107440.0,107430.0,0.60430302]
[1750135324438,0.04653559,107440.0,107430.0,0.38231505]
[1750135324645,0.0465355,107440.0,107430.0,0.38231505]
[1750135324850,0.0535355,107440.0,107430.0,0.38331505]
[1750135325276,0.0359209,107440.0,107430.0,0.38331505]
[1750135325487,0.0359209,107440.0,107430.0,0.58940302]
[1750135325699,0.04522807,107440.0,107430.0,0.58940302]
[1750135325908,0.0359209,107440.0,107430.0,0.58940302]
[1750135326403,0.0359209,107440.0,107430.0,0.43540302]
[1750135326619,0.01730682,107440.0,107430.0,0.58936302]
[1750135327043,0.02661382,107440.0,107430.0,0.68560478]
[1750135327501,0.008,107440.0,107430.0,0.68560478]
[1750135327716,0.008,107440.0,107430.0,0.71780478]
[1750135329382,0.008,107440.0,107430.0,1.05780478]
[1750135330041,0.01730682,107440.0,107430.0,0.90384478]
[1750135330254,0.02661373,107440.0,107430.0,1.04212478]
[1750135330670,0.02661382,107440.0,107430.0,1.04212478]